fUSD/lending_fUSD_20251112
["ID","MTS","AMOUNT","RATE_DAILY","PERIOD"]
[393705222,1762935046380,-85507.34068577,0.00039178,29]
[393705223,1762935046390,-386.09499652,0.00039178,30]
[393705224,1762935046399,-3016.9261159,0.00039178,2]
[393705225,1762935046408,-160.15009018,0.00039178,20]
[393705226,1762935046417,-500.0,0.00039178,15]
[393705227,1762935046427,-30167.3917486,0.00039178,2]
[393705228,1762935046436,-639.20756675,0.00039178,20]
[393705229,1762935046445,-500.0,0.00039178,20]
[393705230,1762935046456,-500.0,0.00039178,20]
[393705231,1762935046465,-500.0,0.00039178,20]
[393705232,1762935046475,-500.0,0.00039178,20]
[393705233,1762935046484,-500.0,0.00039178,20]
[393705234,1762935046494,-500.0,0.00039178,20]
[393705235,1762935046502,-500.0,0.00039178,20]
[393705236,1762935046512,-500.0,0.00039178,20]
[393705237,1762935046523,-500.0,0.00039178,20]
[393705238,1762935046532,-500.0,0.00039178,20]
[393705239,1762935046541,-500.0,0.00039178,20]
[393705240,1762935046550,-1243.0,0.00039178,7]
[393705241,1762935046560,-1243.0,0.00039178,7]
[393705243,1762935046569,-1243.0,0.00039178,7]
[393705244,1762935046578,-1243.0,0.00039178,7]
[393705245,1762935046588,-1243.0,0.00039178,7]
[393705246,1762935046597,-1243.0,0.00039178,7]
[393705247,1762935046606,-1243.0,0.00039178,7]
[393705248,1762935046615,-1243.0,0.00039178,7]
[393705249,1762935046624,-1243.0,0.00039178,7]
[393705250,1762935046633,-1243.0,0.00039178,7]
[393705251,1762935046643,-1243.0,0.00039178,7]
[393705252,1762935046652,-1243.0,0.00039178,7]
[393705253,1762935046661,-1243.0,0.00039178,7]
[393705254,1762935046670,-1243.0,0.00039178,7]
[393705255,1762935046681,-1243.0,0.00039178,7]
[393705256,1762935046690,-1243.0,0.00039178,7]
[393705257,1762935046700,-1243.0,0.00039178,7]
[393705258,1762935046710,-500.0,0.00039178,20]
[393705259,1762935046719,-500.0,0.00039178,20]
[393705260,1762935046730,-500.0,0.00039178,20]
[393705261,1762935046739,-500.0,0.00039178,20]
[393705262,1762935046752,-500.0,0.00039178,20]
[393705263,1762935046762,-618.26,0.00039178,20]
[393705264,1762935046771,-618.26,0.00039178,20]
[393705265,1762935046780,-618.26,0.00039178,20]
[393705266,1762935046791,-618.26,0.00039178,20]
[393705267,1762935046800,-618.26,0.00039178,20]
[393705268,1762935046809,-1564.39,0.00039178,20]
[393705269,1762935046820,-1564.39,0.00039178,20]
[393705270,1762935046829,-1564.39,0.00039178,20]
[393705271,1762935046838,-1564.39,0.00039178,20]
[393705272,1762935046848,-1564.39,0.00039178,20]
[393705273,1762935046857,-1564.39,0.00039178,20]
[393705274,1762935046866,-1564.39,0.00039178,20]
[393705275,1762935046875,-1564.39,0.00039178,20]
[393705276,1762935046884,-476.0644222,0.00039178,20]
[393705277,1762935046893,-562.13278875,0.00039178,20]
[393705278,1762935046903,-1317.02,0.00039178,20]
[393705279,1762935046912,-1317.02,0.00039178,20]
[393705280,1762935046921,-1317.02,0.00039178,20]
[393705281,1762935046931,-1317.02,0.00039178,20]
[393705282,1762935046941,-1317.02,0.00039178,20]
[393705284,1762935046950,-1317.02,0.00039178,20]
[393705285,1762935046959,-5068.8808595,0.00039178,2]
[393705286,1762935046968,-1317.02,0.00039178,20]
[393705287,1762935046977,-1317.02,0.00039178,20]
[393705288,1762935046987,-339.09588854,0.00039178,20]
[393705289,1762935046997,-479.88789551,0.00039178,20]
[393705290,1762935047006,-500.0,0.00039178,20]
[393705291,1762935047015,-161.84738352,0.00039178,10]
[393705292,1762935047025,-457.50538898,0.00039178,20]
[393705293,1762935047034,-513.69615416,0.00039178,20]
[393705294,1762935047043,-590.75678583,0.00039178,20]
[393705295,1762935047053,-550.75391609,0.00039178,20]
[393705296,1762935047062,-500.0,0.00039178,20]
[393705297,1762935047071,-500.0,0.00039178,20]
[393705298,1762935047081,-151.0,0.00039178,120]
[393705299,1762935047090,-500.0,0.00039178,20]
[393705300,1762935047099,-500.0,0.00039178,20]
[393705301,1762935047109,-500.0,0.00039178,20]
[393705302,1762935047119,-534.81619494,0.00039178,20]
[393705303,1762935047128,-500.0,0.00039178,20]
[393705304,1762935047138,-500.0,0.00039178,20]
[393705305,1762935047147,-500.0,0.00039178,20]
[393705306,1762935047157,-500.0,0.00039178,20]
[393705307,1762935047166,-500.0,0.00039178,20]
[393705308,1762935047176,-500.0,0.00039178,20]
[393705309,1762935047185,-500.0,0.00039178,20]
[393705310,1762935047195,-500.0,0.00039178,20]
[393705311,1762935047205,-500.0,0.00039178,20]
[393705312,1762935047215,-500.0,0.00039178,20]
[393705313,1762935047225,-518.89982678,0.00039178,20]
[393705314,1762935047235,-500.0,0.00039178,20]
[393705315,1762935047245,-504.45160062,0.00039178,20]
[393705316,1762935047254,-539.27009656,0.00039178,20]
[393705317,1762935047264,-532.67395374,0.00039178,20]
[393705318,1762935047273,-500.0,0.00039178,20]
[393705319,1762935047283,-500.0,0.00039178,20]
[393705320,1762935047292,-500.0,0.00039178,20]
[393705321,1762935047301,-500.0,0.00039178,20]
[393705322,1762935047311,-500.0,0.00039178,20]
[393705323,1762935047320,-500.0,0.00039178,20]
[393705324,1762935047329,-561.86774998,0.00039178,20]
[393705325,1762935047339,-507.73046791,0.00039178,20]
[393705326,1762935047348,-585.61,0.00039178,20]
[393705327,1762935047358,-540.48769431,0.00039178,20]
[393705328,1762935047367,-387.80511071,0.00039178,20]
[393705329,1762935047376,-465.74630554,0.00039178,20]
[393705330,1762935047386,-500.0,0.00039178,20]
[393705331,1762935047395,-295.97041955,0.00039178,20]
[393705332,1762935047405,-211.15573173,0.00039178,20]
[393705333,1762935047414,-500.0,0.00039178,20]
[393705334,1762935047423,-378.52703323,0.00039178,20]
[393705335,1762935047433,-500.0,0.00039178,20]
[393705336,1762935047442,-500.0,0.00039178,20]
[393705337,1762935047452,-500.0,0.00039178,20]
[393705338,1762935047461,-500.0,0.00039178,20]
[393705339,1762935047471,-500.0,0.00039178,20]
[393705340,1762935047481,-527.76484568,0.00039178,20]
[393705341,1762935047490,-500.0,0.00039178,20]
[393705342,1762935047499,-500.0,0.00039178,20]
[393705343,1762935047509,-500.0,0.00039178,20]
[393705344,1762935047518,-500.0,0.00039178,20]
[393705345,1762935047529,-499.8143695,0.00039178,20]
[393705346,1762935047538,-500.0,0.00039178,20]
[393705347,1762935047547,-416.86477878,0.00039178,20]
[393705348,1762935047557,-540.31271557,0.00039178,20]
[393705349,1762935047567,-500.0,0.00039178,20]
[393705350,1762935047576,-500.0,0.00039178,20]
[393705351,1762935047586,-500.0,0.00039178,20]
[393705352,1762935047595,-500.0,0.00039178,20]
[393705353,1762935047605,-500.0,0.00039178,20]
[393705354,1762935047614,-500.0,0.00039178,20]
[393705355,1762935047625,-500.0,0.00039178,20]
[393705356,1762935047636,-500.0,0.00039178,20]
[393705357,1762935047645,-500.0,0.00039178,20]
[393705358,1762935047654,-500.0,0.00039178,20]
[393705359,1762935047664,-585.61,0.00039178,20]
[393705360,1762935047674,-585.61,0.00039178,20]
[393705361,1762935047684,-585.61,0.00039178,20]
[393705362,1762935047693,-585.61,0.00039178,20]
[393705363,1762935047705,-585.61,0.00039178,20]
[393705364,1762935047714,-500.0,0.00039178,20]
[393705365,1762935047724,-500.0,0.00039178,20]
[393705366,1762935047733,-500.0,0.00039178,20]
[393705367,1762935047743,-500.0,0.00039178,20]
[393705368,1762935047756,-500.0,0.00039178,20]
[393705369,1762935047765,-500.0,0.00039178,20]
[393705370,1762935047774,-627.13013756,0.00039178,20]
[393705371,1762935047784,-500.0,0.00039178,20]
[393705372,1762935047795,-500.0,0.00039178,20]
[393705373,1762935047804,-500.0,0.00039178,20]
[393705374,1762935047813,-545.99643059,0.00039178,20]
[393705375,1762935047825,-500.0,0.00039178,20]
[393705376,1762935047835,-271.76495714,0.00039178,20]
[393705377,1762935047844,-500.0,0.00039178,20]
[393705378,1762935047854,-500.0,0.00039178,20]
[393705379,1762935047865,-500.0,0.00039178,20]
[393705380,1762935047874,-500.0,0.00039178,20]
[393705381,1762935047884,-500.0,0.00039178,20]
[393705382,1762935047895,-500.0,0.00039178,20]
[393705383,1762935047905,-500.0,0.00039178,20]
[393705384,1762935047915,-500.0,0.00039178,20]
[393705385,1762935047925,-500.0,0.00039178,20]
[393705386,1762935047935,-526.05253746,0.00039178,20]
[393705387,1762935047944,-529.09218094,0.00039178,30]
[393705388,1762935047955,-291.87411485,0.00039178,20]
[393705389,1762935047964,-500.0,0.00039178,20]
[393705390,1762935047975,-510.84783707,0.00039178,20]
[393705391,1762935047984,-500.0,0.00039178,20]
[393705392,1762935047993,-214.09006265,0.00039178,20]
[393705393,1762935048003,-435.15917912,0.00039178,20]
[393705394,1762935048012,-513.77945621,0.00039178,20]
[393705395,1762935048022,-500.0,0.00039178,20]
[393705396,1762935048032,-500.0,0.00039178,20]
[393705397,1762935048041,-500.0,0.00039178,20]
[393705398,1762935048050,-500.0,0.00039178,20]
[393705399,1762935048060,-500.0,0.00039178,20]
[393705400,1762935048069,-500.0,0.00039178,20]
[393705401,1762935048079,-500.0,0.00039178,20]
[393705402,1762935048088,-500.0,0.00039178,20]
[393705403,1762935048097,-500.0,0.00039178,20]
[393705404,1762935048107,-500.0,0.00039178,20]
[393705405,1762935048117,-500.0,0.00039178,20]
[393705406,1762935048126,-500.0,0.00039178,20]
[393705407,1762935048136,-500.0,0.00039178,20]
[393705408,1762935048146,-500.0,0.00039178,20]
[393705409,1762935048155,-500.0,0.00039178,20]
[393705410,1762935048165,-390.0,0.00039178,20]
[393705411,1762935048174,-555.82,0.00039178,20]
[393705412,1762935048184,-555.82,0.00039178,20]
[393705413,1762935048194,-555.82,0.00039178,20]
[393705414,1762935048205,-555.82,0.00039178,20]
[393705415,1762935048215,-555.82,0.00039178,20]
[393705416,1762935048224,-570.32347487,0.00039178,20]
[393705417,1762935048234,-611.94627296,0.00039178,20]
[393705418,1762935048244,-1000.0,0.00039178,2]
[393705419,1762935048253,-1000.0,0.00039178,2]
[393705420,1762935048263,-1000.0,0.00039178,2]
[393705421,1762935048273,-500.0,0.00039178,20]
[393705422,1762935048283,-524.58809439,0.00039178,20]
[393705423,1762935048292,-500.0,0.00039178,20]
[393705424,1762935048301,-500.0,0.00039178,20]
[393705425,1762935048311,-500.0,0.00039178,20]
[393705426,1762935048320,-500.0,0.00039178,20]
[393705427,1762935048329,-500.0,0.00039178,20]
[393705428,1762935048339,-500.0,0.00039178,20]
[393705429,1762935048348,-500.0,0.00039178,20]
[393705430,1762935048358,-500.0,0.00039178,20]
[393705431,1762935048367,-500.0,0.00039178,20]
[393705432,1762935048377,-500.0,0.00039178,20]
[393705433,1762935048387,-172.73946615,0.00039178,20]
[393705434,1762935048397,-500.0,0.00039178,20]
[393705435,1762935048406,-606.2776745,0.00039178,20]
[393705436,1762935048416,-500.0,0.00039178,20]
[393705437,1762935048426,-500.0,0.00039178,20]
[393705438,1762935048436,-500.0,0.00039178,20]
[393705439,1762935048446,-560.46829702,0.00039178,20]
[393705440,1762935048457,-500.0,0.00039178,20]
[393705441,1762935048468,-500.0,0.00039178,20]
[393705442,1762935048478,-500.0,0.00039178,20]
[393705443,1762935048487,-500.0,0.00039178,20]
[393705444,1762935048497,-155.54364503,0.00039178,7]
[393705445,1762935048506,-510.04237982,0.00039178,20]
[393705446,1762935048516,-500.0,0.00039178,20]
[393705447,1762935048525,-305.5142853,0.00039178,20]
[393705448,1762935048535,-500.0,0.00039178,20]
[393705449,1762935048544,-500.0,0.00039178,20]
[393705450,1762935048554,-500.0,0.00039178,20]
[393705451,1762935048564,-500.0,0.00039178,20]
[393705452,1762935048574,-500.0,0.00039178,20]
[393705453,1762935048584,-500.0,0.00039178,20]
[393705454,1762935048593,-500.0,0.00039178,20]
[393705455,1762935048603,-500.0,0.00039178,20]
[393705456,1762935048613,-500.0,0.00039178,20]
[393705457,1762935048623,-500.0,0.00039178,20]
[393705458,1762935048633,-500.0,0.00039178,20]
[393705459,1762935048642,-500.0,0.00039178,20]
[393705460,1762935048652,-535.20919681,0.00039178,20]
[393705461,1762935048662,-247.66170784,0.00039178,20]
[393705462,1762935048671,-500.0,0.00039178,20]
[393705463,1762935048681,-505.82963849,0.00039178,20]
[393705464,1762935048691,-523.24567319,0.00039178,7]
[393705465,1762935048700,-500.0,0.00039178,20]
[393705466,1762935048711,-500.0,0.00039178,20]
[393705467,1762935048721,-500.0,0.00039178,20]
[393705468,1762935048731,-500.0,0.00039178,20]
[393705469,1762935048740,-604.658152,0.00039178,20]
[393705470,1762935048754,-342.97822757,0.00039178,20]
[393705471,1762935049268,-167.23418354,0.00038,120]
[393705472,1762935049279,-175.83400381,0.00039178,20]
[393705473,1762935049288,-500.0,0.00039178,20]
[393705474,1762935049298,-500.0,0.00039178,20]
[393705475,1762935049308,-500.0,0.00039178,20]
[393705476,1762935049317,-520.88732469,0.00039178,20]
[393705477,1762935049327,-453.52575133,0.00039178,20]
[393705478,1762935049338,-328.51207874,0.00039178,20]
[393705479,1762935049348,-500.0,0.00039178,20]
[393705480,1762935049358,-500.0,0.00039178,20]
[393705481,1762935049367,-500.0,0.00039178,20]
[393705482,1762935049377,-500.0,0.00039178,20]
[393705483,1762935049386,-49.20931241,0.00039178,20]
[393705484,1762935049423,-343.59599999,0.00039178,20]
[393705503,1762935753266,162.2,0.0001923,2]
[393705506,1762936011946,5000.00908174,0.000162,5]
[393705509,1762936121574,151.4,0.00013699,2]
[393705510,1762936121981,151.4,0.00020951,2]
[393705524,1762936232194,-162.2,0.00022925,2]
[393705525,1762936232205,-162.2,0.0002662,2]
[393705526,1762936232218,-151.4,0.00028203,2]
[393705527,1762936232227,-191.05,0.0002905,30]
[393705528,1762936232237,-162.2,0.00030316,2]
[393705529,1762936232248,-191.05,0.00031613,30]
[393705530,1762936232257,-4766.19408182,0.000328,2]
[393705531,1762936232267,-162.2,0.00034011,2]
[393705532,1762936232276,-191.05,0.00034177,30]
[393705533,1762936232285,-111.3637013,0.00034618,2]
[393705534,1762936234229,-67.0362987,0.00034618,2]
[393705537,1762936237997,-613.1397191,0.00035,120]
[393705538,1762936238009,-151.4,0.00035455,2]
[393705539,1762936238018,-775.641899,0.00036128,2]
[393705540,1762936238029,-615.59,0.00036136,2]
[393705541,1762936238038,-155.64,0.00036221,2]
[393705542,1762936238046,-160.0,0.0003631,30]
[393705543,1762936238055,-400.0,0.00036499,3]
[393705544,1762936238065,-1593.71301159,0.000365,120]
[393705545,1762936238076,-267.59,0.0003667,120]
[393705546,1762936238087,-191.05,0.0003674,60]
[393705547,1762936238101,-160.0,0.0003687,60]
[393705548,1762936238111,-160.0,0.00037,90]
[393705549,1762936238121,-4273.57774201,0.0003759,2]
[393705550,1762936238134,-162.2,0.00037706,2]
[393705551,1762936238144,-478.56668374,0.00037731,2]
[393705552,1762936238154,-4029.58,0.0003776,2]
[393705553,1762936238164,-353.86,0.00037777,14]
[393705554,1762936238175,-199.3495691,0.0003788,2]
[393705555,1762936238185,-500.0,0.00037904,5]
[393705556,1762936238194,-795.11,0.00037905,2]
[393705557,1762936238204,-18094.05270977,0.0003797,2]
[393705558,1762936238217,-2197.11316772,0.0003797,2]
[393705559,1762936238232,-1531.3562485,0.0003797,2]
[393705565,1762936240313,-554.60020652,0.0003797,2]
[393705566,1762936240324,-295.92201115,0.0003797,2]
[393705567,1762936240336,-272.32015735,0.0003797,2]
[393705568,1762936240375,-372.24,0.0003797,2]
[393705597,1762936242525,188.8313602,0.00034518,2]
[393705618,1762936243293,-2000.0,0.0003461,2]
[393705619,1762936243303,-2024.8295,0.0003797,2]
[393705620,1762936243351,-500.0,0.0003797,2]
[393705621,1762936243519,-56806.13686705,0.0003797,2]
[393705634,1762936246201,-3293.8874419,0.0003797,2]
[393705636,1762936440085,935.9,0.00030137,120]
[393705644,1762936700807,201.0,0.00030137,120]
[393705648,1762937089721,160.0,0.00021,2]
[393705649,1762937112071,159.17,0.00021,3]
[393705652,1762937192151,-200.0,0.00034,120]
[393705653,1762937192171,-152.0,0.00034099,3]
[393705654,1762937192194,-166.66,0.00034618,30]
[393705655,1762937192214,-500.0,0.00035066,30]
[393705656,1762937192235,-213.31543931,0.00035306,2]
[393705657,1762937192255,-152.0,0.00035392,4]
[393705658,1762937192275,-181.4484377,0.00035867,15]
[393705659,1762937192295,-3661.62099295,0.00036413,2]
[393705660,1762937261362,250.0,0.00017,2]
[393705706,1762937432915,-2183.31900705,0.00036413,2]
[393705708,1762937432924,-433.0,0.00036417,2]
[393705710,1762937432934,-512.44975263,0.00036475,7]
[393705712,1762937432943,-480.0,0.00036475,7]
[393705714,1762937432953,-200.0,0.00036497,2]
[393705716,1762937432962,-480.0,0.000365,7]
[393705718,1762937432972,-432.0,0.00036522,7]
[393705720,1762937432981,-152.0,0.00036684,5]
[393705722,1762937432990,-432.0,0.0003674,2]
[393705724,1762937432999,-1197.08,0.00036861,30]
[393705726,1762937433009,-500.0,0.00036874,30]
[393705729,1762937433019,-256.3275,0.00036888,7]
[393705731,1762937433028,-212.0,0.0003689,30]
[393705733,1762937433039,-168.0,0.000369,2]
[393705735,1762937433048,-432.0,0.0003695,120]
[393705737,1762937433057,-200.0,0.00037,120]
[393705739,1762937433067,-500.0,0.0003703,30]
[393705741,1762937433076,-770.00650967,0.00037161,30]
[393705743,1762937433086,-499.70073904,0.00037218,2]
[393705745,1762937433095,-360.11649161,0.00037283,7]
[393705748,1762937433120,-839.88350839,0.00037283,7]
[393705751,1762937433131,-6823.2586431,0.00037324,2]
[393705753,1762937433141,-480.0,0.00037333,7]
[393705755,1762937433151,-500.0,0.00037409,30]
[393705757,1762937433160,-311.88,0.00037435,120]
[393705759,1762937433169,-500.0,0.00037438,5]
[393705761,1762937433178,-335.06489131,0.00037495,2]
[393705763,1762937433188,-159.0,0.000375,15]
[393705765,1762937433197,-160.0,0.000375,20]
[393705767,1762937433207,-3268.2307322,0.00037511,2]
[393705769,1762937433216,-168.0,0.00037543,120]
[393705771,1762937433225,-800.0,0.00037557,7]
[393705773,1762937433235,-500.0,0.00037557,7]
[393705775,1762937433246,-1504.65639,0.0003759,2]
[393705777,1762937433255,-150.0,0.00037607,2]
[393705779,1762937433264,-504.654,0.00037634,49]
[393705780,1762937433274,-1330.78795193,0.000377,2]
[393705782,1762937433283,-549.74,0.00037781,2]
[393705784,1762937433292,-215.44,0.00037781,2]
[393705786,1762937433301,-173.33,0.00037781,2]
[393705789,1762937433313,-181.41,0.00037781,2]
[393705791,1762937433322,-150.58,0.00037781,2]
[393705793,1762937433332,-154.11,0.00037781,2]
[393705795,1762937433341,-152.85,0.00037781,2]
[393705797,1762937433350,-153.05,0.00037781,2]
[393705799,1762937433360,-416.24,0.00037781,2]
[393705801,1762937433369,-1207.25,0.00037781,2]
[393705803,1762937433378,-177.14,0.00037781,2]
[393705805,1762937433388,-549.74,0.00037781,2]
[393705807,1762937433398,-169.26,0.00037781,2]
[393705809,1762937433407,-150.0,0.00037781,2]
[393705811,1762937433416,-150.0,0.00037781,2]
[393705813,1762937433426,-416.24,0.00037781,2]
[393705815,1762937433435,-150.0,0.00037781,2]
[393705817,1762937433445,-150.0,0.00037781,2]
[393705819,1762937433455,-1207.25,0.00037781,2]
[393705821,1762937433464,-549.74,0.00037781,2]
[393705823,1762937433474,-169.26,0.00037781,2]
[393705825,1762937433483,-177.14,0.00037781,2]
[393705827,1762937433492,-150.0,0.00037781,2]
[393705829,1762937433502,-150.0,0.00037781,2]
[393705831,1762937433511,-416.24,0.00037781,2]
[393705833,1762937433521,-150.0,0.00037781,2]
[393705835,1762937433531,-150.0,0.00037781,2]
[393705837,1762937433540,-150.0,0.00037781,2]
[393705839,1762937433550,-1207.25,0.00037781,2]
[393705841,1762937433559,-169.26,0.00037781,2]
[393705843,1762937433569,-549.74,0.00037781,2]
[393705846,1762937433591,-177.14,0.00037781,2]
[393705849,1762937433609,-150.0,0.00037781,2]
[393705852,1762937433625,-416.24,0.00037781,2]
[393705854,1762937433638,-150.0,0.00037781,2]
[393705857,1762937433654,-173.85338264,0.000378,120]
[393705859,1762937433669,-2500.0,0.000378,2]
[393705862,1762937433687,-1116.30638279,0.000378,2]
[393705865,1762937433703,-1000.0,0.000378,2]
[393705867,1762937433717,-166.42500665,0.000378,2]
[393705870,1762937433729,-1949.95919374,0.000378,2]
[393705872,1762937433744,-4628.27,0.00037873,2]
[393705875,1762937433758,-151.0,0.00037877,2]
[393705877,1762937433772,-151.0,0.00037877,2]
[393705880,1762937433789,-151.0,0.00037877,2]
[393705883,1762937433803,-151.0,0.00037877,2]
[393705885,1762937433817,-151.0,0.00037877,2]
[393705888,1762937433832,-151.0,0.00037877,2]
[393705890,1762937433846,-151.0,0.00037877,2]
[393705893,1762937433861,-151.0,0.00037877,2]
[393705895,1762937433874,-151.0,0.00037877,2]
[393705898,1762937433889,-151.0,0.00037877,2]
[393705901,1762937433909,-151.0,0.00037877,2]
[393705904,1762937433926,-151.0,0.00037877,2]
[393705906,1762937433939,-151.0,0.00037877,2]
[393705909,1762937433950,-151.0,0.00037877,2]
[393705911,1762937433962,-151.0,0.00037877,2]
[393705914,1762937433980,-151.0,0.00037877,2]
[393705916,1762937433991,-151.0,0.00037877,2]
[393705918,1762937434003,-151.0,0.00037877,2]
[393705921,1762937434015,-151.0,0.00037877,2]
[393705924,1762937434035,-151.0,0.00037877,2]
[393705926,1762937434048,-151.0,0.00037877,2]
[393705928,1762937434060,-151.0,0.00037877,2]
[393705931,1762937434071,-151.0,0.00037877,2]
[393705933,1762937434084,-151.0,0.00037877,2]
[393705936,1762937434106,-240.89319949,0.00037877,2]
[393705939,1762937434119,-151.0,0.00037877,2]
[393705941,1762937434133,-151.0,0.00037877,2]
[393705944,1762937434148,-151.0,0.00037877,2]
[393705946,1762937434162,-151.0,0.00037877,2]
[393705949,1762937434175,-151.0,0.00037877,2]
[393705951,1762937434188,-500.0,0.00037899,15]
[393705954,1762937434201,-500.0,0.00037899,15]
[393705956,1762937434214,-500.0,0.00037899,15]
[393705958,1762937434226,-500.0,0.00037899,15]
[393705960,1762937434241,-500.0,0.00037899,15]
[393705963,1762937434254,-500.0,0.00037899,15]
[393705965,1762937434265,-500.0,0.00037899,15]
[393705967,1762937434277,-500.0,0.00037899,15]
[393705970,1762937434290,-500.0,0.00037899,15]
[393705972,1762937434302,-500.0,0.00037899,15]
[393705974,1762937434315,-500.0,0.00037899,15]
[393705977,1762937434326,-500.0,0.00037899,15]
[393705979,1762937434338,-500.0,0.00037899,15]
[393705981,1762937434349,-500.0,0.00037899,15]
[393705983,1762937434361,-500.0,0.00037899,15]
[393705986,1762937434374,-500.0,0.00037899,15]
[393705988,1762937434386,-500.0,0.00037899,15]
[393705991,1762937434399,-500.0,0.00037899,15]
[393705993,1762937434411,-500.0,0.00037899,15]
[393705995,1762937434423,-500.0,0.00037899,15]
[393705998,1762937434435,-500.0,0.00037899,15]
[393706000,1762937434447,-500.0,0.00037899,15]
[393706002,1762937434459,-354.89922631,0.00037899,15]
[393706005,1762937434472,-500.0,0.00037899,15]
[393706007,1762937434484,-500.0,0.00037899,15]
[393706009,1762937434496,-550.0,0.00037899,15]
[393706011,1762937434508,-500.0,0.00037899,15]
[393706012,1762937434521,-500.0,0.00037899,15]
[393706013,1762937434533,-500.0,0.00037899,15]
[393706014,1762937434545,-500.0,0.00037899,15]
[393706015,1762937434558,-500.0,0.00037899,15]
[393706016,1762937434571,-500.0,0.00037899,15]
[393706017,1762937434587,-500.0,0.00037899,15]
[393706020,1762937434599,-500.0,0.00037899,15]
[393706022,1762937434612,-500.0,0.00037899,15]
[393706024,1762937434624,-500.0,0.00037899,15]
[393706026,1762937434636,-330.54026674,0.00037899,15]
[393706029,1762937434649,-500.0,0.00037899,15]
[393706031,1762937434661,-500.0,0.00037899,15]
[393706033,1762937434673,-500.0,0.00037899,15]
[393706036,1762937434685,-500.0,0.00037899,15]
[393706038,1762937434697,-500.0,0.00037899,15]
[393706040,1762937434709,-500.0,0.00037899,15]
[393706043,1762937434721,-500.0,0.00037899,15]
[393706045,1762937434733,-500.0,0.00037899,15]
[393706047,1762937434746,-500.0,0.00037899,15]
[393706050,1762937434758,-500.0,0.00037899,15]
[393706052,1762937434770,-500.0,0.00037899,15]
[393706054,1762937434781,-233.29,0.00037899,7]
[393706057,1762937434794,-500.0,0.00037899,15]
[393706059,1762937434806,-500.0,0.00037899,15]
[393706061,1762937434818,-500.0,0.00037899,15]
[393706064,1762937434830,-500.0,0.00037899,15]
[393706066,1762937434842,-77005.70478459,0.000379,2]
[393706069,1762937434858,-17088.28031495,0.000379,2]
[393706142,1762937438223,-62418.16262714,0.000379,2]
[393706143,1762937438378,-263487.85227332,0.000379,2]
[393706144,1762937438388,-150.0,0.000379,120]
[393706145,1762937438397,-386.45604132,0.00037905,2]
[393706146,1762937438407,-1949.95919372,0.00037944,2]
[393706147,1762937438417,-1116.30638275,0.00037945,2]
[393706148,1762937438427,-1000.0,0.0003796,4]
[393706149,1762937438436,-1000.0,0.0003796,10]
[393706150,1762937438446,-2289.05479407,0.0003797,2]
[393706151,1762937438456,-200.0,0.0003797,2]
[393706152,1762937438466,-509.10429346,0.00037973,5]
[393706153,1762937438476,-152.0,0.00037976,6]
[393706155,1762937438489,-160.98,0.00037999,2]
[393706157,1762937438498,-15368.19613051,0.00038,2]